bitfinex-derivatives/quotes_SOLF0:USTF0_20250206
["timestamp","ask_amount","ask_price","bid_price","bid_amount"]
[1738810994401,4.9987,200.05,199.97,5.0003]
[1738810994999,4.9987,200.05,199.99,0.03419968]
[1738810995197,0.03347282,200.03,199.99,0.03419968]
[1738810996100,5.03247282,200.03,199.99,0.03419968]
[1738810996503,0.03347282,200.03,199.99,0.03419968]
[1738810997307,0.03347282,200.03,199.99,5.03409968]
[1738810998107,0.03347282,200.03,199.99,0.03419968]
[1738811000706,0.03347282,200.03,199.99,5.03409968]
[1738811001199,0.03347282,200.03,200.02,4.9992]
[1738811001404,203.50425394,200.18,200.01,13.50425394]
[1738811001607,3.1587,200.17,200.07,13.50425394]
[1738811002107,3.1587,200.17,200.04,13.50425394]
[1738811002499,0.03726841,200.11,200.07,0.03473578]
[1738811002705,4.9972,200.1,200.07,0.03473578]
[1738811002903,0.03726841,200.11,200.07,0.03473578]
[1738811003707,4.9977,200.08,200.07,0.03473578]
[1738811004809,4.999,200.03,199.98,3.68]
[1738811005008,1.5359,200.07,199.98,3.68]
[1738811005207,190.0,200.13,200.01,13.50425394]
[1738811005506,1.5359,200.12,200.01,13.50425394]
[1738811005905,0.03385409,200.09,200.04,0.03843764]
[1738811007811,5.03135409,200.09,200.04,0.03843764]
[1738811009508,7.85135409,200.09,200.04,0.03843764]
[1738811010706,2.85385409,200.09,200.04,0.03843764]
[1738811010907,2.85385409,200.09,200.07,13.50425394]
[1738811011111,4.6241,200.2,200.07,13.50425394]
[1738811011313,4.6241,200.2,200.1,13.50425394]
[1738811011713,4.9951,200.19,200.1,18.50135394]
[1738811012109,4.6241,200.2,200.1,18.50135394]
[1738811012312,0.03196351,200.17,200.12,0.03816643]
[1738811013414,5.02756351,200.17,200.12,0.03816643]
[1738811013607,0.03196351,200.17,200.12,0.03816643]
[1738811014015,0.03196351,200.17,200.13,13.50425394]
[1738811014716,0.03196351,200.17,200.13,18.50065394]
[1738811015617,0.03196351,200.17,200.16,13.50425394]
[1738811016718,3.0653,200.27,200.18,4.9951]
[1738811017816,0.03662704,200.25,200.2,0.03844363]
[1738811018614,0.03662704,200.25,200.22,13.50425394]
[1738811020319,0.03662704,200.25,200.23,4.9939]
[1738811020920,1.5741,200.32,200.22,13.50425394]
[1738811021119,1.6056,200.34,200.26,13.50425394]
[1738811021820,1.6056,200.34,200.27,4.9928]
[1738811022016,3.116,200.37,200.29,13.50425394]
[1738811022218,0.03188089,200.33,200.29,13.50425394]
[1738811022420,0.03188089,200.33,200.29,18.49665394]
[1738811022913,0.03188089,200.33,200.29,13.50425394]
[1738811023120,0.03188089,200.33,200.32,13.50425394]
[1738811024617,0.03188089,200.33,200.29,13.50425394]
[1738811024814,0.03188089,200.33,200.28,3.71645491]
[1738811025527,4.992,200.31,200.28,3.71645491]
[1738811025921,0.03188089,200.33,200.28,3.71645491]
[1738811026229,4.9917,200.32,200.28,3.71645491]
[1738811027525,0.03188089,200.33,200.28,3.71645491]
[1738811028230,5.02338089,200.33,200.28,3.71645491]
[1738811029130,0.03188089,200.33,200.28,3.71645491]
[1738811029325,0.03188089,200.33,200.28,0.03645491]
[1738811030429,4.992,200.31,200.28,0.03645491]
[1738811031026,5.02348089,200.33,200.28,0.03645491]
[1738811031431,4.992,200.32,200.28,0.03645491]
[1738811033833,0.03188089,200.33,200.28,0.03645491]
[1738811034133,0.03188089,200.33,200.29,13.50425394]
[1738811035130,0.03188089,200.33,200.29,18.49665394]
[1738811037134,0.03188089,200.33,200.28,0.03645491]
[1738811040831,5.02338089,200.33,200.28,0.03645491]
[1738811041031,0.03188089,200.33,200.28,0.03645491]
[1738811044233,0.03188089,200.33,200.29,13.50425394]
[1738811046235,4.9918,200.32,200.28,0.03645491]
[1738811046437,0.03188089,200.33,200.28,0.03645491]
[1738811046632,1.5423,200.32,200.28,0.03645491]
[1738811046838,3.0793,200.32,200.28,0.03645491]
[1738811047437,4.9925,200.29,200.28,0.03645491]
[1738811047638,3.0793,200.32,200.28,0.03645491]
[1738811047836,4.9922,200.3,200.28,0.03645491]
[1738811048139,3.0793,200.32,200.28,0.03645491]
[1738811048639,4.992,200.31,200.28,0.03645491]
[1738811048838,3.0793,200.32,200.28,0.03645491]
[1738811050145,8.071,200.32,200.28,0.03645491]
[1738811050643,4.992,200.31,200.28,0.03645491]
[1738811051842,3.0793,200.32,200.28,0.03645491]
[1738811052042,4.9923,200.3,200.28,0.03645491]
[1738811052244,3.0793,200.32,200.28,0.03645491]
[1738811052443,0.03188089,200.33,200.28,0.03645491]
[1738811052647,0.03188089,200.33,200.29,13.50425394]
[1738811053743,0.03188089,200.33,200.29,18.49675394]
[1738811053936,0.03188089,200.33,200.28,0.03645491]
[1738811054339,4.9917,200.32,200.28,0.03645491]
[1738811054538,0.03188089,200.33,200.28,0.03645491]
[1738811055142,4.9925,200.29,200.28,0.03645491]
[1738811055347,3.1157,200.32,200.28,0.03645491]
[1738811056048,4.7055,200.32,200.2,13.50425394]
[1738811056848,13.50425394,200.3,200.17,68.73969743]
[1738811057251,0.03352534,200.26,200.21,0.03694221]
[1738811057740,4.9938,200.24,200.21,0.03694221]
[1738811058444,4.9942,200.23,200.21,0.03694221]
[1738811059555,1.4741,200.22,200.11,13.50425394]
[1738811059944,1.4741,200.22,200.08,36.6071132]
[1738811060143,1.4741,200.22,200.08,24.32932542]
[1738811060350,13.50425394,200.21,200.08,13.50425394]
[1738811060548,4.9959,200.16,200.12,0.03356312]
[1738811063755,0.03742734,200.17,200.12,0.03356312]
[1738811063948,0.03742734,200.17,200.14,18.50035394]
[1738811064355,0.03742734,200.17,200.14,13.50425394]
[1738811065357,0.03742734,200.17,200.14,18.50035394]
[1738811065854,0.03742734,200.17,200.14,13.50425394]
[1738811066060,1.5086,200.25,200.15,3.68]
[1738811066258,1.5086,200.25,200.2,13.50425394]
[1738811067058,1.54663195,200.25,200.2,13.53958747]
[1738811068163,0.03803195,200.25,200.2,18.53418747]
[1738811068455,0.03803195,200.25,200.2,13.53958747]
[1738811069059,0.03803195,200.25,200.2,18.53428747]
[1738811069859,0.03803195,200.25,200.23,13.50425394]
[1738811070555,0.03803195,200.25,200.24,4.9937]
[1738811071061,1.4941,200.35,200.23,13.50425394]
[1738811071259,1.4941,200.35,200.28,13.50425394]
[1738811072163,0.03711111,200.34,200.29,0.03710124]
[1738811072865,0.03711111,200.34,200.29,5.02940124]
[1738811074561,0.03711111,200.34,200.3,4.9922]
[1738811075965,0.03711111,200.34,200.29,5.02950124]
[1738811076867,0.03711111,200.34,200.29,0.03710124]
[1738811077764,4.9915,200.33,200.29,0.03710124]
[1738811078358,0.03711111,200.34,200.29,0.03710124]
[1738811080867,4.9922,200.31,200.29,0.03710124]
[1738811081461,0.03711111,200.34,200.29,0.03710124]
[1738811081462,5.02831111,200.34,200.29,0.03710124]
[1738811081770,0.03711111,200.34,200.29,0.03710124]
[1738811082067,5.02841111,200.34,200.29,0.03710124]
[1738811084668,4.9915,200.33,200.29,0.03710124]
[1738811085268,5.02831111,200.34,200.29,0.03710124]
[1738811086275,0.03711111,200.34,200.3,4.9922]
[1738811087173,0.03711111,200.34,200.29,0.03710124]
[1738811087475,0.03711111,200.34,200.29,5.02950124]
[1738811090675,4.9915,200.33,200.29,0.03710124]
[1738811091877,0.03711111,200.34,200.29,0.03710124]
[1738811092178,0.03711111,200.34,200.29,5.02930124]
[1738811092573,0.03711111,200.34,200.29,0.03710124]
[1738811092779,0.03711111,200.34,200.3,4.9922]
[1738811096378,0.03711111,200.34,200.29,0.03710124]
[1738811096980,0.03711111,200.34,200.29,5.02950124]
[1738811098082,0.03711111,200.34,200.29,0.03710124]
[1738811098382,0.03711111,200.34,200.31,13.50425394]
[1738811099482,0.03711111,200.34,200.33,4.9915]
[1738811099887,1.6125,200.44,200.31,13.50425394]
[1738811100185,1.6125,200.44,200.39,4.9899]
[1738811101073,1.6125,200.44,200.39,5.02522964]
[1738811101074,1.64586196,200.44,200.39,5.02522964]
[1738811101274,1.64586196,200.44,200.39,0.03532964]
[1738811103686,4.989,200.43,200.39,0.03532964]
[1738811104782,4.9895,200.41,200.39,0.03532964]
[1738811105085,1.64586196,200.44,200.39,0.03532964]
[1738811106787,4.9897,200.4,200.39,0.03532964]
[1738811106982,4.9897,200.4,200.33,13.50425394]
[1738811106983,13.50425394,200.42,200.3,13.50425394]
[1738811107189,13.50425394,200.42,200.27,68.73969743]
[1738811107389,4.991,200.35,200.28,4.9927]
[1738811107584,13.50425394,200.42,200.27,13.50425394]
[1738811107784,190.0,200.41,200.27,13.50425394]
[1738811107985,0.03402261,200.37,200.32,0.03272955]
[1738811108387,4.9914,200.34,200.32,0.03272955]
[1738811108982,0.03402261,200.37,200.32,0.03272955]
[1738811110790,4.991,200.35,200.32,0.03272955]
[1738811110991,0.03402261,200.37,200.32,0.03272955]
[1738811111289,0.03402261,200.37,200.33,13.50425394]
[1738811112191,0.03402261,200.37,200.33,18.49565394]
[1738811112391,0.03402261,200.37,200.33,13.50425394]
[1738811112792,0.03402261,200.37,200.36,18.49495394]
[1738811114899,6.6013,200.44,200.36,18.49495394]
[1738811116095,0.03471521,200.42,200.38,0.03495939]
[1738811117693,0.03471521,200.42,200.39,18.49415394]
[1738811119300,0.03471521,200.42,200.39,13.50425394]
[1738811120898,0.03471521,200.42,200.38,0.03495939]
[1738811123198,4.9898,200.4,200.38,0.03495939]
[1738811133408,4.99,200.39,200.3,13.50425394]
[1738811133605,3.1805,200.41,200.3,13.50425394]
[1738811134511,3.1805,200.41,200.27,18.49695394]
[1738811134714,0.03178269,200.38,200.33,0.03567182]
[1738811135108,4.9911,200.35,200.33,0.03567182]
[1738811135409,0.03178269,200.38,200.33,0.03567182]
[1738811135611,4.9906,200.37,200.33,0.03567182]
[1738811135801,0.03178269,200.38,200.33,13.53992576]
[1738811137215,0.03178269,200.38,200.33,0.03567182]
[1738811137718,4.9908,200.36,200.33,0.03567182]
[1738811137915,0.03178269,200.38,200.33,0.03567182]
[1738811138909,4.9911,200.35,200.33,0.03567182]
[1738811139309,4.9906,200.37,200.33,0.03567182]
[1738811140912,0.03178269,200.38,200.33,0.03567182]
[1738811142112,4.9905,200.37,200.33,0.03567182]
[1738811143310,0.03178269,200.38,200.33,13.53992576]
[1738811144917,0.03178269,200.38,200.34,4.9912]
[1738811145721,0.03178269,200.38,200.33,13.53992576]
[1738811146617,5.02208269,200.38,200.33,0.03567182]
[1738811147717,0.03178269,200.38,200.33,0.03567182]
[1738811148016,4.9908,200.36,200.33,0.03567182]
[1738811148619,0.03178269,200.38,200.33,0.03567182]
[1738811148821,0.03178269,200.38,200.33,13.53992576]
[1738811149718,0.03178269,200.38,200.34,4.9912]
[1738811151916,0.03178269,200.38,200.35,4.9909]
[1738811152312,0.03178269,200.38,200.33,13.53992576]
[1738811152516,0.03178269,200.38,200.36,4.9906]
[1738811153018,0.03178269,200.38,200.34,4.991]
[1738811153520,0.03178269,200.38,200.33,13.53992576]
[1738811153719,0.03178269,200.38,200.35,4.9909]
[1738811156726,190.0,200.54,200.36,13.50425394]
[1738811156922,4.988,200.47,200.39,13.50425394]
[1738811157516,4.7354,200.53,200.39,13.50425394]
[1738811157724,4.7354,200.53,200.42,13.50425394]
[1738811158123,0.03289129,200.47,200.45,18.49255394]
[1738811158522,0.03289129,200.47,200.45,13.50425394]
[1738811158729,0.03289129,200.47,200.43,0.03188122]
[1738811160537,0.03289129,200.47,200.44,4.9887]
[1738811160931,0.03289129,200.47,200.43,0.03188122]
[1738811161236,190.0,200.54,200.45,13.50425394]
[1738811161428,55.28060978,200.56,200.49,13.50425394]
[1738811161633,60.26640978,200.56,200.49,13.50425394]
[1738811161834,55.28060978,200.56,200.49,13.50425394]
[1738811162034,55.28060978,200.56,200.46,13.50425394]
[1738811162232,4.9865,200.53,200.46,13.50425394]
[1738811162433,4.9865,200.53,200.49,0.0325226]
[1738811162434,5.01992718,200.53,200.49,0.0325226]
[1738811165135,4.987,200.51,200.49,0.0325226]
[1738811165340,0.03342718,200.53,200.49,0.0325226]
[1738811166940,4.9872,200.5,200.49,0.0325226]
[1738811169342,4.9884,200.46,200.39,13.50425394]
[1738811169545,13.53768112,200.53,200.39,13.50425394]
[1738811169546,1.5918,200.49,200.39,13.50425394]
[1738811170540,0.03770142,200.46,200.42,0.03578957]
[1738811170944,4.989,200.43,200.42,0.03578957]
[1738811172636,0.03770142,200.46,200.33,13.50425394]
[1738811172838,13.50425394,200.47,200.33,13.50425394]
[1738811173945,0.03502533,200.42,200.38,0.03355973]
[1738811175536,4.9898,200.4,200.38,0.03355973]
[1738811175742,0.03502533,200.42,200.38,0.03355973]
[1738811176142,5.02452533,200.42,200.38,0.03355973]
[1738811176444,0.03502533,200.42,200.38,0.03355973]
[1738811177445,4.9897,200.41,200.38,0.03355973]
[1738811178246,4.9897,200.4,200.38,0.03355973]
[1738811178548,0.03502533,200.42,200.38,0.03355973]
[1738811179245,5.02422533,200.42,200.38,0.03355973]
[1738811179446,0.03502533,200.42,200.38,0.03355973]
[1738811180051,4.9897,200.41,200.38,0.03355973]
[1738811182150,0.03502533,200.42,200.38,0.03355973]
[1738811183147,4.99,200.39,200.38,0.03355973]
[1738811187751,0.03502533,200.42,200.38,0.03355973]
[1738811187952,4.9897,200.4,200.38,0.03355973]
[1738811190061,0.03502533,200.42,200.38,0.03355973]
[1738811190256,0.03502533,200.42,200.38,13.53781367]
[1738811191558,0.03502533,200.42,200.38,0.03355973]
[1738811192355,0.03502533,200.42,200.38,13.53781367]
[1738811192759,0.03502533,200.42,200.39,4.99]
[1738811192960,0.03502533,200.42,200.41,13.50425394]
[1738811193155,1.5417,200.51,200.41,13.50425394]
[1738811193460,1.5531,200.56,200.45,13.50425394]
[1738811193860,4.986,200.55,200.47,4.9879]
[1738811194165,1.5531,200.56,200.48,13.50425394]
[1738811194365,0.03735269,200.53,200.51,13.50425394]
[1738811195062,245.28060978,200.65,200.51,13.50425394]
[1738811195264,55.28060978,200.65,200.54,13.50425394]
[1738811196467,0.03373232,200.62,200.57,0.03299453]
[1738811196868,4.9846,200.61,200.57,0.03299453]
[1738811198776,4.985,200.59,200.57,0.03299453]
[1738811200470,0.03373232,200.62,200.51,13.50425394]
[1738811200777,13.50425394,200.63,200.51,13.50425394]
[1738811200969,205.00505394,200.66,200.51,13.50425394]
[1738811201375,4.9853,200.58,200.51,18.49115394]
[1738811201772,0.03718035,200.57,200.52,0.03217628]
[1738811203480,4.9865,200.53,200.52,0.03217628]
[1738811203675,13.54143429,200.57,200.45,13.50425394]
[1738811203978,13.50425394,200.57,200.45,13.50425394]
[1738811204178,4.987,200.51,200.45,13.50425394]
[1738811204679,4.9873,200.5,200.43,3.66]
[1738811204979,4.9873,200.5,200.46,0.03642776]
[1738811204980,5.01988471,200.5,200.46,0.03642776]
[1738811205181,0.03258471,200.5,200.46,0.03642776]
[1738811206780,5.01988471,200.5,200.46,0.03642776]
[1738811214690,5.01988471,200.5,200.46,8.62954657]
[1738811214890,0.03258471,200.5,200.46,8.62954657]
[1738811215889,0.03258471,200.5,200.46,0.03642776]
[1738811216389,4.988,200.47,200.46,0.03642776]
[1738811216690,3.08748471,200.5,200.46,0.03642776]
[1738811217783,4.9875,200.49,200.46,0.03642776]
[1738811219491,4.988,200.47,200.46,0.03642776]
[1738811222189,3.08748471,200.5,200.33,1.5885]
[1738811222190,3.08748471,200.5,200.37,13.43116873]
[1738811222382,13.43116873,200.48,200.34,13.43116873]
[1738811222585,4.9898,200.4,200.34,13.43116873]
[1738811222787,13.43116873,200.45,200.31,78.65028625]
[1738811222991,1.5872,200.39,200.31,67.86654255]
[1738811223194,1.5872,200.39,200.36,0.03794264]
[1738811223495,4.9905,200.37,200.36,0.03794264]
[1738811225991,0.0346886,200.4,200.36,0.03794264]
[1738811226493,0.0346886,200.4,200.28,13.43116873]
[1738811226790,13.43116873,200.42,200.28,13.43116873]
[1738811226992,4.9915,200.33,200.28,13.43116873]
[1738811227590,5.02747174,200.33,200.28,13.46854063]
[1738811228084,0.03597174,200.33,200.28,13.46854063]
[1738811228289,4.9919,200.32,200.28,13.46854063]
[1738811228490,0.03597174,200.33,200.28,0.0373719]
[1738811229992,13.46714047,200.33,200.19,13.43116873]
[1738811230292,1.5432,200.32,200.19,13.43116873]
[1738811230491,4.9927,200.29,200.19,13.43116873]
[1738811230694,1.5432,200.32,200.19,13.43116873]
[1738811231101,5.02759586,200.28,200.23,0.03501917]
[1738811231397,0.03489586,200.28,200.23,0.03501917]
[1738811231593,4.9937,200.24,200.16,13.43116873]
[1738811231789,1.5803,200.27,200.16,13.43116873]
[1738811231994,15.01146873,200.27,200.13,13.43116873]
[1738811232294,13.43116873,200.24,200.11,55.23544349]
[1738811232489,1.5432,200.23,200.11,55.23544349]
[1738811232685,4.9959,200.16,200.11,55.23544349]
[1738811232890,4.9959,200.16,200.15,0.03657287]
[1738811233194,0.03755862,200.19,200.11,55.23544349]
[1738811234194,0.03755862,200.19,200.1,94.7203977]
[1738811234391,4.9953,200.18,200.11,4.9968]
[1738811234691,0.03755862,200.19,200.1,13.43116873]
[1738811235096,0.03755862,200.19,200.13,4.9964]
[1738811236599,0.03755862,200.19,200.13,13.43116873]
[1738811237693,0.03755862,200.19,200.11,3.66]
[1738811239099,4.9952,200.18,200.11,3.66]
[1738811239399,0.03755862,200.19,200.11,3.66]
[1738811239600,0.03755862,200.19,200.12,4.9967]
[1738811240598,0.03755862,200.19,200.11,3.66]
[1738811240799,0.03755862,200.19,200.13,13.43116873]
[1738811241500,0.03755862,200.19,200.16,13.43116873]
[1738811244504,0.03755862,200.19,200.12,2.0967]
[1738811244505,0.03755862,200.19,200.13,13.43116873]
[1738811244801,0.03755862,200.19,200.12,4.9638]
[1738811245203,5.03255862,200.19,200.12,1.2838]
[1738811245403,5.03255862,200.19,200.11,4.9969]
[1738811245906,5.03255862,200.19,200.1,17.11116873]
[1738811245907,5.03255862,200.19,200.12,4.9967]
[1738811247898,5.03255862,200.19,200.1,22.10816873]
[1738811248104,5.03255862,200.19,200.1,17.11116873]
[1738811249807,5.03255862,200.19,200.11,4.9969]
[1738811250807,0.03755862,200.19,200.07,13.43116873]
[1738811251006,13.43116873,200.18,200.06,1.2841]
[1738811251211,0.03190531,200.15,200.06,4.9641]
[1738811251805,4.9962,200.14,200.06,9.962]
[1738811252209,4.9962,200.14,200.07,4.9979]
[1738811253011,0.03190531,200.15,200.06,1.2841]
[1738811253204,4.9967,200.13,200.05,5.8112]
[1738811254606,4.9968,200.12,200.04,19.93526873]
[1738811254911,0.03590028,200.1,200.04,23.61526873]
[1738811255109,0.03590028,200.1,200.04,13.43116873]
[1738811256311,4.9975,200.09,200.01,17.11116873]
[1738811256506,4.9975,200.09,200.01,13.43116873]
[1738811257015,0.03590028,200.1,200.01,13.43116873]
[1738811257712,4.9982,200.06,199.99,4.9999]
[1738811258011,4.9982,200.06,199.98,18.57406873]
[1738811258211,0.0320978,200.05,199.98,13.43116873]
[1738811258410,0.0320978,200.05,199.96,1.2848]
[1738811258612,0.0320978,200.05,199.95,98.50285995]
[1738811259005,4.9989,200.04,199.95,103.50375995]
[1738811259208,0.0320978,200.05,199.95,98.50285995]
[1738811259415,0.0320978,200.05,199.95,85.07169122]
[1738811259612,4.9997,200.0,199.95,85.07169122]
[1738811260011,0.03199608,199.99,199.95,85.07169122]
[1738811260211,0.03199608,199.99,199.92,13.43116873]
[1738811260611,0.03199608,199.99,199.84,3.6842]
[1738811260612,13.46316481,199.99,199.86,13.43116873]
[1738811260913,5.0006,199.97,199.86,13.43116873]
[1738811261106,0.03155102,199.94,199.86,13.43116873]
[1738811261310,0.03155102,199.94,199.89,13.43116873]
[1738811261712,0.03155102,199.94,199.89,18.43356873]
[1738811262514,0.03155102,199.94,199.89,13.43116873]
[1738811262812,190.0,200.05,199.92,13.43116873]
[1738811263019,18.04926873,200.08,199.95,13.43116873]
[1738811263316,13.43116873,200.05,199.92,13.43116873]
[1738811263813,1.5189,200.12,199.98,13.43116873]
[1738811265221,0.03446196,200.07,200.03,0.03523536]
[1738811267213,0.03446196,200.07,200.03,5.03413536]
[1738811267516,0.03446196,200.07,200.03,0.03523536]
[1738811270119,4.9996,200.01,199.93,1.2873]
[1738811270315,13.43116873,200.05,199.93,1.2873]
[1738811270509,13.43116873,200.02,199.89,13.43116873]
[1738811270710,5.0002,199.98,199.89,18.43346873]
[1738811271015,13.43116873,200.02,199.87,6.4441]
[1738811271217,13.43116873,200.02,199.87,2.7641]
[1738811271417,0.03548655,199.96,199.93,0.03096134]
[1738811278222,5.03628655,199.96,199.93,0.03096134]
[1738811279328,0.03548655,199.96,199.93,0.03096134]
[1738811281830,5.001,199.95,199.93,0.03096134]
[1738811284227,5.0012,199.94,199.93,0.03096134]
[1738811285432,5.001,199.95,199.93,0.03096134]
[1738811286230,0.03548655,199.96,199.86,13.43116873]
[1738811286929,5.0014,199.93,199.86,18.43436873]
[1738811287430,0.03435059,199.91,199.86,13.43116873]
[1738811289029,0.03435059,199.91,199.87,5.0029]
[1738811290330,0.03435059,199.91,199.88,5.0027]
[1738811291626,0.03435059,199.91,199.86,13.43116873]
[1738811291932,0.03435059,199.91,199.87,5.0029]
[1738811292132,5.03635059,199.91,199.84,3.68]
[1738811292432,0.03435059,199.91,199.83,13.43116873]
[1738811293026,5.03635059,199.91,199.83,18.43506873]
[1738811295734,5.0023,199.9,199.83,13.43116873]
[1738811296332,5.0025,199.89,199.81,1.5962]
[1738811296724,0.03520067,199.87,199.8,13.43116873]
[1738811297831,5.03830067,199.87,199.8,13.43116873]
[1738811298635,5.0032,199.86,199.78,5.0052]
[1738811301337,13.43116873,199.84,199.69,3.68]
[1738811301539,13.43116873,199.84,199.68,10.81417349]
[1738811301736,0.03396764,199.79,199.68,14.49417349]
[1738811302140,0.03396764,199.79,199.68,3.68]
[1738811302738,5.03896764,199.79,199.71,5.0068]
[1738811304036,0.03396764,199.79,199.71,5.0068]
[1738811304240,0.03396764,199.79,199.72,5.0066]
[1738811304443,0.03396764,199.79,199.68,3.68]
[1738811304840,0.03396764,199.79,199.71,5.0069]
[1738811306951,0.03396764,199.79,199.68,3.68]
[1738811307153,0.03396764,199.79,199.73,5.0064]
[1738811307653,0.03396764,199.79,199.68,3.68]
[1738811307856,0.03396764,199.79,199.71,5.0067]
[1738811308554,5.03896764,199.79,199.71,5.0067]
[1738811309254,0.03396764,199.79,199.73,13.43116873]
[1738811309554,0.03396764,199.79,199.76,5.0056]
[1738811309752,0.03396764,199.79,199.73,13.43116873]
[1738811310152,0.03396764,199.79,199.75,5.0058]
[1738811310756,0.03396764,199.79,199.76,5.0057]
[1738811311053,0.03396764,199.79,199.73,13.43116873]
[1738811312760,0.03396764,199.79,199.75,5.0058]
[1738811312962,0.03396764,199.79,199.73,13.43116873]
[1738811313156,0.03396764,199.79,199.7,13.43116873]
[1738811314161,0.03396764,199.79,199.67,13.43116873]
[1738811314459,13.43116873,199.81,199.67,13.43116873]
[1738811314660,0.03274411,199.75,199.67,13.43116873]
[1738811315962,0.03274411,199.75,199.68,5.0075]
[1738811316161,0.03274411,199.75,199.67,13.43116873]
[1738811316358,0.03274411,199.75,199.68,5.0076]
[1738811317556,0.03274411,199.75,199.67,13.43116873]
[1738811318160,0.03274411,199.75,199.67,18.43916873]
[1738811318360,5.03874411,199.75,199.67,18.43916873]
[1738811319662,0.03274411,199.75,199.68,5.0076]
[1738811322661,5.0065,199.73,199.66,13.66931382]
[1738811322962,8.66111382,199.74,199.66,8.66111382]
[1738811323165,0.03439823,199.71,199.66,8.66111382]
[1738811324662,0.03439823,199.71,199.64,13.53190793]
[1738811324866,0.03439823,199.71,199.67,13.53190793]
[1738811326660,0.03439823,199.71,199.7,5.0072]
[1738811327666,1.5763,199.83,199.7,13.53190793]
[1738811327865,5.0047,199.81,199.7,13.53190793]
[1738811328466,1.5763,199.83,199.73,13.53190793]
[1738811328867,0.03274493,199.8,199.76,0.03439823]
[1738811331162,0.03274493,199.8,199.76,5.04009823]
[1738811331367,0.03274493,199.8,199.76,0.03439823]
[1738811332167,0.03274493,199.8,199.77,5.0054]
[1738811334568,0.03274493,199.8,199.76,0.03439823]
[1738811335569,0.03274493,199.8,199.78,5.0051]
[1738811336669,1.5707,199.9,199.79,13.53190793]
[1738811336862,5.0029,199.87,199.79,13.53190793]
[1738811337064,15.10260793,199.9,199.76,13.53190793]
[1738811337267,13.53190793,199.87,199.73,13.53190793]
[1738811337671,13.53190793,199.84,199.72,8.6865]
[1738811337870,0.03416044,199.82,199.78,0.03524271]
[1738811338073,5.0048,199.8,199.78,0.03524271]
[1738811338665,5.0049,199.79,199.78,0.03524271]
[1738811339374,15.05850793,199.81,199.67,13.53190793]
[1738811339375,5.0057,199.76,199.69,5.0074]
[1738811339569,5.0057,199.76,199.67,13.53190793]
[1738811339773,15.05850793,199.81,199.67,13.53190793]
[1738811340074,5.0059,199.76,199.67,18.53970793]
[1738811340275,13.53190793,199.78,199.67,5.0078]
[1738811340574,0.0367271,199.74,199.71,0.03190044]
[1738811346478,5.0066,199.73,199.71,0.03190044]
[1738811346779,0.0367271,199.74,199.71,0.03190044]
[1738811347182,5.0067,199.72,199.71,0.03190044]
[1738811347778,5.0431271,199.74,199.71,0.03190044]
[1738811348182,0.0367271,199.74,199.71,0.03190044]
[1738811348382,5.0065,199.73,199.71,0.03190044]
[1738811349583,0.0367271,199.74,199.71,0.03190044]
[1738811354383,18.14090793,199.87,199.73,13.53190793]
[1738811354585,8.65191303,199.86,199.77,8.65191303]
[1738811354782,5.004,199.83,199.77,8.65191303]
[1738811355481,5.004,199.83,199.78,0.03536773]
[1738811355783,0.03453991,199.82,199.78,0.03536773]
[1738811356484,5.03873991,199.82,199.78,0.03536773]
[1738811356677,0.03453991,199.82,199.78,0.03536773]
[1738811357180,5.0049,199.79,199.78,0.03536773]
[1738811358683,0.03453991,199.82,199.78,0.03536773]
[1738811358883,5.0047,199.8,199.78,0.03536773]
[1738811359075,0.03453991,199.82,199.78,0.03536773]
[1738811361880,5.0047,199.8,199.78,0.03536773]
[1738811363186,5.0049,199.79,199.78,0.03536773]
[1738811366688,13.55776222,199.82,199.68,13.52322231]
[1738811366877,13.52322231,199.82,199.68,13.52322231]
[1738811367381,5.0064,199.74,199.68,18.53072231]
[1738811367985,0.03776021,199.73,199.69,0.03243049]
[1738811368587,5.0067,199.72,199.69,0.03243049]
[1738811368891,0.03776021,199.73,199.69,0.03243049]
[1738811369385,190.0,199.91,199.71,13.52322231]
[1738811369582,3.0973,199.89,199.77,13.52322231]
[1738811369893,3.0973,199.89,199.75,5.0058]
[1738811370690,0.03271049,199.84,199.8,0.03333259]
[1738811373493,0.03271049,199.84,199.8,5.03803259]
[1738811376195,0.03271049,199.84,199.8,0.03333259]
[1738811376395,5.03651049,199.84,199.8,0.03333259]
[1738811378497,0.03271049,199.84,199.8,0.03333259]
[1738811378699,5.004,199.83,199.8,0.03333259]
[1738811382199,0.03271049,199.84,199.8,0.03333259]
[1738811382405,5.0042,199.82,199.8,0.03333259]
[1738811382707,0.03271049,199.84,199.8,0.03333259]
[1738811382900,5.03661049,199.84,199.8,0.03333259]
[1738811383100,0.03271049,199.84,199.8,0.03333259]